fUSD/lending_fUSD_20260606
["ID","MTS","AMOUNT","RATE_DAILY","PERIOD"]
[424247805,1780705843000,-482.72385787,0.00013699,2]
[424247808,1780705843000,-500.0,0.00013699,2]
[424247806,1780705843000,-500.0,0.00013699,2]
[424247807,1780705843000,-500.0,0.00013699,2]
[424247813,1780705843000,-500.0,0.00013699,2]
[424247821,1780705843000,-1548.0,0.00013702,2]
[424247822,1780705843000,-1548.0,0.00013702,2]
[424247823,1780705843000,-1548.0,0.00013702,2]
[424247812,1780705843000,-500.0,0.00013699,2]
[424247814,1780705843000,-150.0,0.000137,2]
[424247815,1780705843000,-150.0,0.000137,2]
[424247831,1780705843000,-288.37560756,0.00013729,2]
[424247816,1780705843000,-277.92638462,0.000137,2]
[424247817,1780705843000,-1134.96,0.000137,2]
[424247820,1780705843000,-1548.0,0.00013702,2]
[424247818,1780705843000,-150.0,0.00013702,2]
[424247819,1780705843000,-1548.0,0.00013702,2]
[424247825,1780705843000,-152.0,0.00013702,2]
[424247828,1780705843000,-151.0,0.00013702,2]
[424247830,1780705843000,-150.0,0.00013724,2]
[424247826,1780705843000,-151.0,0.00013702,2]
[424247827,1780705843000,-151.0,0.00013702,2]
[424247829,1780705843000,-151.0,0.00013702,2]
[424247764,1780705843000,-381.0,0.00013699,2]
[424247800,1780705843000,-500.0,0.00013699,2]
[424247802,1780705843000,-500.0,0.00013699,2]
[424247824,1780705843000,-152.0,0.00013702,2]
[424247797,1780705843000,-500.0,0.00013699,2]
[424247769,1780705843000,-381.0,0.00013699,2]
[424247801,1780705843000,-500.0,0.00013699,2]
[424247766,1780705843000,-381.0,0.00013699,2]
[424247768,1780705843000,-381.0,0.00013699,2]
[424247771,1780705843000,-381.0,0.00013699,2]
[424247770,1780705843000,-381.0,0.00013699,2]
[424247767,1780705843000,-381.0,0.00013699,2]
[424247776,1780705843000,-381.0,0.00013699,2]
[424247778,1780705843000,-381.0,0.00013699,2]
[424247788,1780705843000,-381.0,0.00013699,2]
[424247786,1780705843000,-381.0,0.00013699,2]
[424247777,1780705843000,-381.0,0.00013699,2]
[424247785,1780705843000,-381.0,0.00013699,2]
[424247779,1780705843000,-381.0,0.00013699,2]
[424247780,1780705843000,-381.0,0.00013699,2]
[424247782,1780705843000,-381.0,0.00013699,2]
[424247792,1780705843000,-500.0,0.00013699,2]
[424247781,1780705843000,-381.0,0.00013699,2]
[424247796,1780705843000,-500.0,0.00013699,2]
[424247798,1780705843000,-500.0,0.00013699,2]
[424247795,1780705843000,-500.0,0.00013699,2]
[424247793,1780705843000,-500.0,0.00013699,2]
[424247799,1780705843000,-500.0,0.00013699,2]
[424247791,1780705843000,-500.0,0.00013699,2]
[424247789,1780705843000,-151.0,0.00013699,2]
[424247790,1780705843000,-500.0,0.00013699,2]
[424247783,1780705843000,-381.0,0.00013699,2]
[424247784,1780705843000,-381.0,0.00013699,2]
[424247787,1780705843000,-381.0,0.00013699,2]
[424247794,1780705843000,-500.0,0.00013699,2]
[424247874,1780705844000,-783.24278636,0.00014161,2]
[424247877,1780705844000,-150.0,0.00014237,2]
[424247873,1780705844000,-150.0,0.00014154,2]
[424247879,1780705844000,-166.66,0.00014247,2]
[424247880,1780705844000,-3245.87887117,0.00014252,2]
[424247869,1780705844000,-244.73326463,0.00014111,2]
[424247867,1780705844000,-150.0,0.0001405,2]
[424247878,1780705844000,-150.0,0.00014237,2]
[424247870,1780705844000,-150.0,0.00014112,2]
[424247875,1780705844000,-150.0,0.00014198,2]
[424247872,1780705844000,-150.0,0.0001413,2]
[424247868,1780705844000,-166.66,0.0001411,2]
[424247871,1780705844000,-150.0,0.00014119,2]
[424247876,1780705844000,-252.97719817,0.000142,2]
[424247883,1780705844000,-288.37560756,0.00014305,2]
[424247896,1780705844000,-150.0,0.00014487,2]
[424247882,1780705844000,-150.0,0.00014276,2]
[424247885,1780705844000,-150.0,0.00014344,2]
[424247886,1780705844000,-150.0,0.00014355,2]
[424247894,1780705844000,-778.51,0.00014445,2]
[424247888,1780705844000,-200.0,0.00014383,2]
[424247881,1780705844000,-1252.0,0.00014255,2]
[424247890,1780705844000,-2000.0,0.000144,2]
[424247893,1780705844000,-372.58578916,0.00014438,2]
[424247887,1780705844000,-150.0,0.00014362,2]
[424247889,1780705844000,-166.66,0.00014384,2]
[424247891,1780705844000,-150.0,0.00014424,2]
[424247892,1780705844000,-150.0,0.00014434,2]
[424247907,1780705844000,-700.27635191,0.0001457,2]
[424247862,1780705844000,-162.38,0.00014,2]
[424247884,1780705844000,-150.0,0.0001432,2]
[424247858,1780705844000,-162.38,0.00014,2]
[424247832,1780705844000,-150.0,0.00013737,2]
[424247860,1780705844000,-162.38,0.00014,2]
[424247835,1780705844000,-327.859357,0.00013739,2]
[424247897,1780705844000,-150.0,0.00014487,2]
[424247837,1780705844000,-151.0,0.00013739,2]
[424247836,1780705844000,-327.859357,0.00013739,2]
[424247833,1780705844000,-327.859357,0.00013739,2]
[424247834,1780705844000,-327.859357,0.00013739,2]
[424247839,1780705844000,-151.21,0.00013771,2]
[424247849,1780705844000,-200.0,0.00013986,2]
[424247850,1780705844000,-150.0,0.00013987,2]
[424247838,1780705844000,-151.0,0.00013739,2]
[424247852,1780705844000,-182.69,0.00013989,2]
[424247851,1780705844000,-150.0,0.00013987,2]
[424247841,1780705844000,-150.0,0.00013821,2]
[424247842,1780705844000,-166.66,0.00013836,2]
[424247856,1780705844000,-333.67,0.00014,2]
[424247848,1780705844000,-166.66,0.00013973,2]
[424247845,1780705844000,-150.0,0.00013882,2]
[424247846,1780705844000,-150.0,0.00013916,2]
[424247844,1780705844000,-150.0,0.00013862,2]
[424247847,1780705844000,-150.0,0.00013961,2]
[424247854,1780705844000,-1619.63,0.00013989,2]
[424247864,1780705844000,-162.38,0.00014,2]
[424247865,1780705844000,-250.0,0.00014,2]
[424247866,1780705844000,-150.0,0.0001404,2]
[424247855,1780705844000,-51612.20018639,0.0001399,2]
[424247863,1780705844000,-162.38,0.00014,2]
[424247857,1780705844000,-162.43,0.00014,2]
[424247859,1780705844000,-162.38,0.00014,2]
[424247853,1780705844000,-500.0,0.00013989,2]
[424247861,1780705844000,-162.38,0.00014,2]
[424247843,1780705844000,-150.0,0.00013862,2]
[424247906,1780705844000,-1000.0,0.0001457,2]
[424247840,1780705844000,-150.0,0.00013803,2]
[424247895,1780705844000,-151.0,0.00014452,2]
[424247946,1780705844000,-2828.2815119,0.00014775,2]
[424247937,1780705844000,-500.0,0.00014774,2]
[424247940,1780705844000,-1619.63,0.00014774,2]
[424247935,1780705844000,-386.01354175,0.00014774,2]
[424247948,1780705844000,-925.738469,0.00014775,2]
[424247938,1780705844000,-500.0,0.00014774,2]
[424247947,1780705844000,-90303.4924619,0.00014775,2]
[424247939,1780705844000,-500.0,0.00014774,2]
[424247941,1780705844000,-1619.63,0.00014774,2]
[424247943,1780705844000,-9825.4522486,0.00014775,2]
[424247944,1780705844000,-501963.5221478,0.00014775,2]
[424247942,1780705844000,-1442.6676195,0.00014775,2]
[424247945,1780705844000,-151.0,0.00014775,2]
[424247950,1780705844000,-151.0,0.00014775,2]
[424247936,1780705844000,-500.0,0.00014774,2]
[424247949,1780705844000,-1722.8563312,0.00014775,2]
[424247953,1780705844000,-327.859357,0.00014775,2]
[424247958,1780705844000,-161.15,0.000148,2]
[424247959,1780705844000,-2000.0,0.000148,2]
[424247954,1780705844000,-327.859353,0.00014775,2]
[424247956,1780705844000,-151.0,0.00014775,2]
[424247951,1780705844000,-327.859357,0.00014775,2]
[424247957,1780705844000,-150.0,0.00014799,2]
[424247955,1780705844000,-151.0,0.00014775,2]
[424247960,1780705844000,-2574.76,0.000148,2]
[424247962,1780705844000,-2574.76,0.000148,2]
[424247963,1780705844000,-2574.76,0.000148,2]
[424247965,1780705844000,-184.65,0.000148,2]
[424247961,1780705844000,-2574.76,0.000148,2]
[424247908,1780705844000,-150.0,0.00014592,2]
[424247952,1780705844000,-327.859357,0.00014775,2]
[424247932,1780705844000,-500.0,0.0001477,2]
[424247964,1780705844000,-2574.78,0.000148,2]
[424247930,1780705844000,-500.0,0.0001477,2]
[424247931,1780705844000,-1000.0,0.0001477,2]
[424247899,1780705844000,-1030.0,0.000145,2]
[424247900,1780705844000,-1500.0,0.000145,2]
[424247898,1780705844000,-306.71,0.00014497,2]
[424247905,1780705844000,-1000.0,0.0001457,2]
[424247903,1780705844000,-179.26701779,0.00014521,10]
[424247901,1780705844000,-150.0,0.00014513,2]
[424247904,1780705844000,-150.0,0.00014558,2]
[424247909,1780705844000,-309.0,0.000146,2]
[424247912,1780705844000,-800.0,0.000146,5]
[424247913,1780705844000,-1500.0,0.000146,5]
[424247911,1780705844000,-315.0,0.000146,2]
[424247914,1780705844000,-150.0,0.00014612,2]
[424247916,1780705844000,-200.0,0.00014631,2]
[424247917,1780705844000,-150.0,0.00014653,2]
[424247902,1780705844000,-500.0,0.00014521,10]
[424247918,1780705844000,-1000.0,0.0001467,2]
[424247915,1780705844000,-150.0,0.00014612,2]
[424247926,1780705844000,-150.0,0.00014737,2]
[424247925,1780705844000,-2000.0,0.00014714,2]
[424247927,1780705844000,-150.0,0.0001475,2]
[424247924,1780705844000,-151.0,0.00014714,2]
[424247922,1780705844000,-800.0,0.000147,5]
[424247928,1780705844000,-500.0,0.0001477,2]
[424247933,1780705844000,-1000.0,0.0001477,2]
[424247910,1780705844000,-1000.0,0.000146,2]
[424247934,1780705844000,-150.0,0.00014772,2]
[424247921,1780705844000,-350.0,0.00014684,2]
[424247920,1780705844000,-150.0,0.00014671,2]
[424247929,1780705844000,-1000.0,0.0001477,2]
[424247919,1780705844000,-500.0,0.0001467,2]
[424247923,1780705844000,-1500.0,0.000147,5]
[424247998,1780705845000,-2000.0,0.00014869,2]
[424247999,1780705845000,-311.7,0.00014869,2]
[424247997,1780705845000,-2000.0,0.00014869,2]
[424248004,1780705845000,-200.0,0.00014879,2]
[424248002,1780705845000,-500.0,0.0001487,2]
[424248003,1780705845000,-1000.0,0.0001487,2]
[424247993,1780705845000,-2000.0,0.00014869,2]
[424248001,1780705845000,-500.0,0.00014869,2]
[424248006,1780705845000,-394.738794,0.000149,2]
[424248008,1780705845000,-341.89028589,0.000149,2]
[424248016,1780705845000,-150.0,0.00014907,2]
[424248000,1780705845000,-500.0,0.00014869,2]
[424248009,1780705845000,-1531.7776,0.000149,2]
[424248005,1780705845000,-288.37560756,0.00014882,2]
[424248007,1780705845000,-230.99309568,0.000149,2]
[424248014,1780705845000,-3245.87887117,0.000149,2]
[424248010,1780705845000,-800.0,0.000149,5]
[424248013,1780705845000,-1500.0,0.000149,5]
[424248012,1780705845000,-783.24278636,0.000149,2]
[424248011,1780705845000,-624.44025061,0.000149,2]
[424248017,1780705845000,-350.0,0.00014958,2]
[424248022,1780705845000,-2000.0,0.00014985,2]
[424247996,1780705845000,-1186.16,0.00014869,2]
[424248028,1780705845000,-155.67737119,0.00014986,2]
[424248015,1780705845000,-1519.71591833,0.000149,2]
[424247995,1780705845000,-2000.0,0.00014869,2]
[424247974,1780705845000,-800.0,0.000148,5]
[424247992,1780705845000,-1246.8,0.00014869,2]
[424248018,1780705845000,-1000.0,0.0001497,2]
[424247967,1780705845000,-184.65,0.000148,2]
[424247966,1780705845000,-184.65,0.000148,2]
[424247968,1780705845000,-184.66,0.000148,2]
[424247969,1780705845000,-5070.49,0.000148,2]
[424247972,1780705845000,-5070.49,0.000148,2]
[424247973,1780705845000,-5070.53,0.000148,2]
[424247971,1780705845000,-5070.49,0.000148,2]
[424247970,1780705845000,-5070.49,0.000148,2]
[424247975,1780705845000,-1500.0,0.000148,5]
[424247985,1780705845000,-2000.0,0.00014869,2]
[424247986,1780705845000,-2000.0,0.00014869,2]
[424247994,1780705845000,-2000.0,0.00014869,2]
[424247977,1780705845000,-150.0,0.00014829,2]
[424247987,1780705845000,-2000.0,0.00014869,2]
[424247978,1780705845000,-1939.90023,0.0001485,2]
[424247983,1780705845000,-150.0,0.00014861,2]
[424247979,1780705845000,-1939.90023,0.0001485,2]
[424247982,1780705845000,-1939.90023,0.0001486,2]
[424247981,1780705845000,-166.66,0.00014851,2]
[424247980,1780705845000,-233439.72378349,0.0001485,2]
[424247984,1780705845000,-2000.0,0.00014869,2]
[424247990,1780705845000,-2000.0,0.00014869,2]
[424247988,1780705845000,-2000.0,0.00014869,2]
[424247991,1780705845000,-2000.0,0.00014869,2]
[424247989,1780705845000,-2000.0,0.00014869,2]
[424247976,1780705845000,-150.0,0.0001482,2]
[424248021,1780705845000,-500.0,0.0001497,2]
[424248025,1780705845000,-150.0,0.00014986,2]
[424248020,1780705845000,-1000.0,0.0001497,2]
[424248062,1780705845000,-1619.63,0.00014999,2]
[424248061,1780705845000,-1619.63,0.00014999,2]
[424248063,1780705845000,-1619.63,0.00014999,2]
[424248064,1780705845000,-1619.63,0.00014999,2]
[424248065,1780705845000,-1619.63,0.00014999,2]
[424248067,1780705845000,-1619.63,0.00014999,2]
[424248068,1780705845000,-1619.63,0.00014999,2]
[424248066,1780705845000,-1619.63,0.00014999,2]
[424248069,1780705845000,-1619.63,0.00014999,2]
[424248070,1780705845000,-1619.63,0.00014999,2]
[424248072,1780705845000,-17798859.5455131,0.00015,2]
[424248075,1780705845000,-1224137.75702261,0.00015,2]
[424248074,1780705845000,-351.7515791,0.00015,2]
[424248076,1780705845000,-2080.4563166,0.00015,2]
[424248077,1780705845000,-2513.65311835,0.00015,14]
[424248079,1780705845000,-865532.78919692,0.00015,2]
[424248073,1780705845000,-428.77736464,0.00015,2]
[424248078,1780705845000,-8098.65518294,0.00015,2]
[424248081,1780705845000,-500.0,0.00015,2]
[424248082,1780705845000,-500.0,0.00015,2]
[424248080,1780705845000,-500.0,0.00015,2]
[424248084,1780705845000,-500.0,0.00015,2]
[424248083,1780705845000,-500.0,0.00015,2]
[424248085,1780705845000,-500.0,0.00015,2]
[424248019,1780705845000,-500.0,0.0001497,2]
[424248058,1780705845000,-500.0,0.00014999,2]
[424248060,1780705845000,-1619.63,0.00014999,2]
[424248071,1780705845000,-1619.85686695,0.00014999,2]
[424248057,1780705845000,-500.0,0.00014999,2]
[424248059,1780705845000,-183.92991566,0.00014999,2]
[424248024,1780705845000,-1629.44,0.00014985,2]
[424248026,1780705845000,-150.8923148,0.00014986,2]
[424248027,1780705845000,-166.63099763,0.00014986,2]
[424248030,1780705845000,-164.90254592,0.00014986,2]
[424248040,1780705845000,-250.0,0.00014999,2]
[424248041,1780705845000,-1000.0,0.00014999,2]
[424248042,1780705845000,-1000.0,0.00014999,2]
[424248031,1780705845000,-150.0,0.00014986,2]
[424248033,1780705845000,-2762.99250173,0.0001499,2]
[424248035,1780705845000,-1226.17004294,0.00014999,2]
[424248032,1780705845000,-350.0,0.00014989,2]
[424248037,1780705845000,-500.0,0.00014999,2]
[424248023,1780705845000,-210.6,0.00014985,2]
[424248034,1780705845000,-151.0,0.00014997,2]
[424248038,1780705845000,-500.0,0.00014999,2]
[424248052,1780705845000,-500.0,0.00014999,2]
[424248054,1780705845000,-500.0,0.00014999,2]
[424248044,1780705845000,-500.0,0.00014999,2]
[424248055,1780705845000,-500.0,0.00014999,2]
[424248049,1780705845000,-500.0,0.00014999,2]
[424248056,1780705845000,-500.0,0.00014999,2]
[424248047,1780705845000,-500.0,0.00014999,2]
[424248043,1780705845000,-500.0,0.00014999,2]
[424248039,1780705845000,-360.52,0.00014999,2]
[424248036,1780705845000,-1024.96605997,0.00014999,5]
[424248045,1780705845000,-500.0,0.00014999,2]
[424248123,1780705846000,-1000.0,0.00015,2]
[424248128,1780705846000,-1000.0,0.00015,2]
[424248122,1780705846000,-1000.0,0.00015,2]
[424248112,1780705846000,-1000.0,0.00015,2]
[424248121,1780705846000,-1000.0,0.00015,2]
[424248118,1780705846000,-1000.0,0.00015,2]
[424248129,1780705846000,-1000.0,0.00015,2]
[424248119,1780705846000,-917.73,0.00015,2]
[424248117,1780705846000,-1000.0,0.00015,2]
[424248125,1780705846000,-1000.0,0.00015,2]
[424248120,1780705846000,-1000.0,0.00015,2]
[424248127,1780705846000,-1000.0,0.00015,2]
[424248131,1780705846000,-1000.0,0.00015,2]
[424248126,1780705846000,-1000.0,0.00015,2]
[424248130,1780705846000,-1000.0,0.00015,2]
[424248132,1780705846000,-465.72,0.00015,2]
[424248133,1780705846000,-1000.0,0.00015,2]
[424248135,1780705846000,-1000.0,0.00015,2]
[424248137,1780705846000,-1000.0,0.00015,2]
[424248134,1780705846000,-1000.0,0.00015,2]
[424248139,1780705846000,-1000.0,0.00015,2]
[424248136,1780705846000,-1000.0,0.00015,2]
[424248138,1780705846000,-1000.0,0.00015,2]
[424248140,1780705846000,-479.44,0.00015,2]
[424248115,1780705846000,-1000.0,0.00015,2]
[424248124,1780705846000,-1000.0,0.00015,2]
[424248113,1780705846000,-1000.0,0.00015,2]
[424248086,1780705846000,-500.0,0.00015,2]
[424248142,1780705846000,-2000.0,0.00015,2]
[424248087,1780705846000,-500.0,0.00015,2]
[424248088,1780705846000,-269.99,0.00015,2]
[424248090,1780705846000,-1000.0,0.00015,2]
[424248093,1780705846000,-1000.0,0.00015,2]
[424248089,1780705846000,-180.0,0.00015,2]
[424248091,1780705846000,-1000.0,0.00015,2]
[424248092,1780705846000,-1000.0,0.00015,2]
[424248096,1780705846000,-1000.0,0.00015,2]
[424248094,1780705846000,-1000.0,0.00015,2]
[424248097,1780705846000,-1000.0,0.00015,2]
[424248095,1780705846000,-1000.0,0.00015,2]
[424248098,1780705846000,-1000.0,0.00015,2]
[424248114,1780705846000,-1000.0,0.00015,2]
[424248101,1780705846000,-1000.0,0.00015,2]
[424248100,1780705846000,-1000.0,0.00015,2]
[424248102,1780705846000,-1000.0,0.00015,2]
[424248103,1780705846000,-1000.0,0.00015,2]
[424248104,1780705846000,-1000.0,0.00015,2]
[424248105,1780705846000,-1000.0,0.00015,2]
[424248106,1780705846000,-1000.0,0.00015,2]
[424248107,1780705846000,-1000.0,0.00015,2]
[424248110,1780705846000,-1000.0,0.00015,2]
[424248109,1780705846000,-1000.0,0.00015,2]
[424248108,1780705846000,-1000.0,0.00015,2]
[424248111,1780705846000,-1000.0,0.00015,2]
[424248116,1780705846000,-1000.0,0.00015,2]
[424248099,1780705846000,-1000.0,0.00015,2]
[424248149,1780705846000,-688.64,0.00015,2]
[424248169,1780705846000,-1000.0,0.00015,2]
[424248151,1780705846000,-172.16,0.00015,2]
[424248178,1780705846000,-152.0,0.00015,2]
[424248177,1780705846000,-152.0,0.00015,2]
[424248179,1780705846000,-151.0,0.00015,2]
[424248181,1780705846000,-155.893806,0.00015,2]
[424248180,1780705846000,-151.0,0.00015,2]
[424248187,1780705846000,-167.0,0.00015,2]
[424248183,1780705846000,-1939.90023,0.00015,2]
[424248184,1780705846000,-1939.90023,0.00015,2]
[424248186,1780705846000,-177.97039274,0.00015,2]
[424248185,1780705846000,-1939.90023,0.00015,2]
[424248182,1780705846000,-1103340.75741989,0.00015,2]
[424248189,1780705846000,-167.0,0.00015,2]
[424248176,1780705846000,-1545.0,0.00015,2]
[424248199,1780705846000,-323.208621,0.00015068,2]
[424248190,1780705846000,-167.0,0.00015,2]
[424248191,1780705846000,-167.0,0.00015,2]
[424248197,1780705846000,-307.0,0.00015068,2]
[424248192,1780705846000,-167.0,0.00015,2]
[424248195,1780705846000,-1555.5,0.00015048,2]
[424248193,1780705846000,-167.63651089,0.00015,2]
[424248194,1780705846000,-1068.11,0.00015048,2]
[424248196,1780705846000,-614.0,0.00015068,2]
[424248198,1780705846000,-900.0,0.00015068,2]
[424248200,1780705846000,-323.208621,0.00015068,2]
[424248201,1780705846000,-323.208621,0.00015068,2]
[424248153,1780705846000,-1000.0,0.00015,2]
[424248188,1780705846000,-167.0,0.00015,2]
[424248172,1780705846000,-1000.0,0.00015,2]
[424248202,1780705846000,-323.208621,0.00015068,2]
[424248171,1780705846000,-1000.0,0.00015,2]
[424248173,1780705846000,-1066.87491431,0.00015,2]
[424248141,1780705846000,-2000.0,0.00015,2]
[424248152,1780705846000,-291.26,0.00015,2]
[424248148,1780705846000,-1898.0,0.00015,2]
[424248143,1780705846000,-2000.0,0.00015,2]
[424248146,1780705846000,-2000.0,0.00015,2]
[424248147,1780705846000,-1163.33,0.00015,2]
[424248145,1780705846000,-1592.0,0.00015,2]
[424248156,1780705846000,-1000.0,0.00015,2]
[424248157,1780705846000,-1000.0,0.00015,2]
[424248154,1780705846000,-1000.0,0.00015,2]
[424248155,1780705846000,-1000.0,0.00015,2]
[424248158,1780705846000,-1000.0,0.00015,2]
[424248150,1780705846000,-286.94,0.00015,2]
[424248161,1780705846000,-1000.0,0.00015,2]
[424248162,1780705846000,-1000.0,0.00015,2]
[424248166,1780705846000,-1000.0,0.00015,2]
[424248165,1780705846000,-1000.0,0.00015,2]
[424248167,1780705846000,-1000.0,0.00015,2]
[424248168,1780705846000,-1000.0,0.00015,2]
[424248170,1780705846000,-1000.0,0.00015,2]
[424248164,1780705846000,-1000.0,0.00015,2]
[424248174,1780705846000,-1548.0,0.00015,2]
[424248163,1780705846000,-1000.0,0.00015,2]
[424248160,1780705846000,-1000.0,0.00015,2]
[424248159,1780705846000,-1000.0,0.00015,2]
[424248175,1780705846000,-1548.0,0.00015,2]
[424248239,1780705847000,-2129.0,0.00015686,2]
[424248236,1780705847000,-350.0,0.00015573,2]
[424248241,1780705847000,-3938.55127862,0.00015721,2]
[424248237,1780705847000,-1107.63007,0.00015596,2]
[424248238,1780705847000,-1613.0535,0.00015596,2]
[424248242,1780705847000,-212.96328853,0.00015744,2]
[424248233,1780705847000,-2000.0,0.000154,2]
[424248240,1780705847000,-3938.55127862,0.00015697,2]
[424248225,1780705847000,-575.19,0.0001515,2]
[424248234,1780705847000,-350.0,0.000154,2]
[424248228,1780705847000,-169.62,0.00015235,2]
[424248250,1780705847000,-500.0,0.00015822,2]
[424248244,1780705847000,-3938.55127862,0.00015761,2]
[424248247,1780705847000,-2274.92026271,0.00015807,2]
[424248246,1780705847000,-3938.55127862,0.00015786,2]
[424248253,1780705847000,-3938.55127862,0.00015861,2]
[424248252,1780705847000,-3938.55127862,0.00015851,2]
[424248248,1780705847000,-575.19,0.00015809,2]
[424248243,1780705847000,-398.92892494,0.00015757,2]
[424248245,1780705847000,-3938.55127862,0.00015784,2]
[424248251,1780705847000,-166.66,0.00015831,2]
[424248249,1780705847000,-500.0,0.00015822,2]
[424248229,1780705847000,-1320.97,0.000153,2]
[424248254,1780705847000,-3938.55127862,0.00015879,2]
[424248235,1780705847000,-10000.0,0.00015405,2]
[424248226,1780705847000,-350.0,0.00015235,2]
[424248214,1780705847000,-323.208621,0.00015068,2]
[424248230,1780705847000,-1517.64,0.000153,2]
[424248261,1780705847000,-779.10858517,0.00016,2]
[424248203,1780705847000,-323.208621,0.00015068,2]
[424248205,1780705847000,-323.208621,0.00015068,2]
[424248204,1780705847000,-323.208621,0.00015068,2]
[424248206,1780705847000,-323.208621,0.00015068,2]
[424248210,1780705847000,-323.208621,0.00015068,2]
[424248209,1780705847000,-323.208621,0.00015068,2]
[424248207,1780705847000,-323.208621,0.00015068,2]
[424248208,1780705847000,-323.208621,0.00015068,2]
[424248212,1780705847000,-323.208621,0.00015068,2]
[424248211,1780705847000,-323.208621,0.00015068,2]
[424248227,1780705847000,-169.62,0.00015235,2]
[424248213,1780705847000,-323.208621,0.00015068,2]
[424248215,1780705847000,-323.208621,0.00015068,2]
[424248216,1780705847000,-323.208621,0.00015068,2]
[424248220,1780705847000,-500.0,0.00015068,2]
[424248219,1780705847000,-500.0,0.00015068,2]
[424248218,1780705847000,-323.208622,0.00015068,2]
[424248222,1780705847000,-500.0,0.00015068,2]
[424248231,1780705847000,-166.66,0.00015341,2]
[424248232,1780705847000,-350.0,0.00015347,2]
[424248221,1780705847000,-500.0,0.00015068,2]
[424248223,1780705847000,-1134.96,0.000151,2]
[424248224,1780705847000,-151.21,0.00015148,2]
[424248217,1780705847000,-323.208621,0.00015068,2]
[424248256,1780705847000,-3938.55127862,0.00015945,2]
[424248262,1780705847000,-150.0,0.00016,2]
[424248291,1780705847000,-791.0,0.0001629,2]
[424248284,1780705847000,-1672.7364795,0.00016144,2]
[424248288,1780705847000,-660.83068784,0.000162,2]
[424248290,1780705847000,-3938.55127862,0.00016282,2]
[424248295,1780705847000,-3440.0,0.0001629,2]
[424248292,1780705847000,-1014.0,0.0001629,2]
[424248294,1780705847000,-2590.0,0.0001629,2]
[424248299,1780705847000,-638.0,0.0001629,2]
[424248297,1780705847000,-587.0,0.0001629,2]
[424248296,1780705847000,-1022.0,0.0001629,2]
[424248298,1780705847000,-3806.0,0.0001629,2]
[424248300,1780705847000,-704.0,0.0001629,2]
[424248287,1780705847000,-3870.58233412,0.000162,2]
[424248301,1780705847000,-3833.0,0.0001629,2]
[424248304,1780705847000,-408.0,0.0001629,2]
[424248302,1780705847000,-800.0,0.0001629,2]
[424248306,1780705847000,-3938.55127862,0.00016301,2]
[424248311,1780705847000,-3938.55127862,0.00016346,2]
[424248305,1780705847000,-3870.58233412,0.000163,2]
[424248308,1780705847000,-350.0,0.00016326,2]
[424248310,1780705847000,-200.0,0.0001634,2]
[424248309,1780705847000,-350.0,0.0001633,2]
[424248307,1780705847000,-166.66,0.00016322,2]